fUST/lending_fUST_20250627
["ID","MTS","AMOUNT","RATE_DAILY","PERIOD"]
[368006413,1750991444030,-930.66,0.00019334,2]
[368006416,1750991444039,-930.66,0.00019351,2]
[368006420,1750991444050,-930.66,0.00019351,2]
[368006423,1750991444059,-930.66,0.00019351,2]
[368006426,1750991444069,-500.0,0.00019451,2]
[368006429,1750991444079,-500.0,0.00019451,2]
[368006432,1750991444088,-335.4802641,0.00019451,2]
[368006435,1750991444097,-500.0,0.00019451,2]
[368006438,1750991444107,-500.0,0.00019451,2]
[368006441,1750991444117,-500.0,0.00019451,2]
[368006443,1750991444126,-208.64069001,0.00019451,2]
[368006445,1750991444135,-500.0,0.00019451,2]
[368006447,1750991444147,-930.66,0.00019451,2]
[368006449,1750991444156,-930.66,0.00019451,2]
[368006451,1750991444165,-930.66,0.00019451,2]
[368006453,1750991444175,-930.66,0.00019451,2]
[368006455,1750991444184,-930.66,0.00019451,2]
[368006457,1750991444194,-930.66,0.00019451,2]
[368006459,1750991444203,-930.66,0.00019451,2]
[368006461,1750991444212,-930.74,0.00019451,2]
[368006463,1750991444221,-460.0,0.00019452,2]
[368006465,1750991444230,-263.58212928,0.00019452,2]
[368006467,1750991444240,-460.0,0.00019452,2]
[368006469,1750991444249,-460.0,0.00019452,2]
[368006471,1750991444258,-401.13391265,0.00019452,2]
[368006473,1750991444267,-401.33721209,0.00019452,2]
[368006475,1750991444277,-460.0,0.00019452,2]
[368006477,1750991444286,-466.64588249,0.00019452,2]
[368006479,1750991444295,-460.0,0.00019452,2]
[368006481,1750991444305,-460.0,0.00019452,2]
[368006483,1750991444315,-460.0,0.00019452,2]
[368006485,1750991444324,-460.0,0.00019452,2]
[368006487,1750991444333,-460.0,0.00019452,2]
[368006489,1750991444342,-460.0,0.00019452,2]
[368006491,1750991444351,-460.0,0.00019452,2]
[368006492,1750991444360,-460.0,0.00019452,2]
[368006494,1750991444370,-460.0,0.00019452,2]
[368006496,1750991444379,-460.0,0.00019452,2]
[368006498,1750991444389,-460.0,0.00019452,2]
[368006500,1750991444398,-460.0,0.00019452,2]
[368006502,1750991444408,-460.0,0.00019452,2]
[368006504,1750991444418,-460.0,0.00019452,2]
[368006506,1750991444427,-603.07312552,0.00019452,2]
[368006508,1750991444436,-404.88186531,0.00019452,2]
[368006510,1750991444446,-460.0,0.00019452,2]
[368006512,1750991444455,-513.19222412,0.00019452,2]
[368006514,1750991444465,-460.0,0.00019452,2]
[368006516,1750991444474,-462.79715609,0.00019452,2]
[368006518,1750991444484,-460.0,0.00019452,2]
[368006520,1750991444497,-460.0,0.00019452,2]
[368006521,1750991444506,-460.0,0.00019452,2]
[368006523,1750991444516,-460.0,0.00019452,2]
[368006525,1750991444525,-460.0,0.00019452,2]
[368006527,1750991444535,-471.85286502,0.00019452,2]
[368006529,1750991444545,-460.0,0.00019452,2]
[368006531,1750991444554,-166.40303637,0.00019452,2]
[368006533,1750991444564,-460.0,0.00019452,2]
[368006535,1750991444574,-470.25643958,0.00019452,2]
[368006538,1750991444593,-161.59167935,0.00019452,2]
[368006540,1750991444605,-460.0,0.00019452,2]
[368006542,1750991444615,-414.7317502,0.00019452,2]
[368006544,1750991444626,-460.0,0.00019452,2]
[368006546,1750991444636,-460.0,0.00019452,2]
[368006548,1750991444647,-572.49499452,0.00019452,2]
[368006550,1750991444657,-460.0,0.00019452,2]
[368006552,1750991444667,-460.0,0.00019452,2]
[368006554,1750991444677,-460.0,0.00019452,2]
[368006557,1750991444687,-460.0,0.00019452,2]
[368006559,1750991444698,-460.0,0.00019452,2]
[368006561,1750991444708,-460.0,0.00019452,2]
[368006563,1750991444719,-460.0,0.00019452,2]
[368006565,1750991444729,-460.0,0.00019452,2]
[368006567,1750991444738,-460.0,0.00019452,2]
[368006569,1750991444748,-460.0,0.00019452,2]
[368006571,1750991444758,-460.0,0.00019452,2]
[368006573,1750991444768,-460.0,0.00019452,2]
[368006575,1750991444778,-464.8562431,0.00019452,2]
[368006577,1750991444789,-460.0,0.00019452,2]
[368006579,1750991444799,-460.0,0.00019452,2]
[368006581,1750991444809,-353.89793093,0.00019452,2]
[368006583,1750991444820,-462.34202879,0.00019452,2]
[368006585,1750991444830,-368.98484053,0.00019452,2]
[368006587,1750991444840,-460.0,0.00019452,2]
[368006589,1750991444850,-460.0,0.00019452,2]
[368006591,1750991444860,-457.14913141,0.00019452,2]
[368006593,1750991444870,-460.0,0.00019452,2]
[368006595,1750991444880,-461.33728817,0.00019452,2]
[368006597,1750991444893,-460.0,0.00019452,2]
[368006599,1750991444902,-460.0,0.00019452,2]
[368006601,1750991444912,-460.0,0.00019452,2]
[368006603,1750991444922,-598.76466569,0.00019452,2]
[368006605,1750991444932,-460.0,0.00019452,2]
[368006607,1750991444942,-460.0,0.00019452,2]
[368006609,1750991444952,-485.30974059,0.00019452,2]
[368006611,1750991444962,-266.38516053,0.00019452,2]
[368006613,1750991444972,-460.0,0.00019452,2]
[368006615,1750991444982,-460.0,0.00019452,2]
[368006617,1750991444992,-460.0,0.00019452,2]
[368006619,1750991445002,-598.41627172,0.00019452,2]
[368006621,1750991445011,-460.0,0.00019452,2]
[368006622,1750991445020,-307.61977035,0.00019452,2]
[368006624,1750991445030,-460.0,0.00019452,2]
[368006626,1750991445039,-460.0,0.00019452,2]
[368006628,1750991445049,-537.6784803,0.00019452,2]
[368006630,1750991445058,-460.0,0.00019452,2]
[368006632,1750991445068,-460.0,0.00019452,2]
[368006634,1750991445077,-460.0,0.00019452,2]
[368006636,1750991445087,-500.0,0.00019452,2]
[368006638,1750991445097,-460.0,0.00019452,2]
[368006640,1750991445107,-161.96059162,0.00019452,2]
[368006642,1750991445116,-512.22,0.00019452,2]
[368006644,1750991445126,-460.0,0.00019452,2]
[368006646,1750991445136,-462.702137,0.00019452,2]
[368006648,1750991445147,-460.0,0.00019452,2]
[368006650,1750991445156,-460.0,0.00019452,2]
[368006652,1750991445166,-460.0,0.00019452,2]
[368006654,1750991445175,-460.0,0.00019452,2]
[368006656,1750991445185,-460.0,0.00019452,2]
[368006659,1750991445196,-460.0,0.00019452,2]
[368006660,1750991445205,-460.0,0.00019452,2]
[368006662,1750991445215,-460.0,0.00019452,2]
[368006664,1750991445224,-460.0,0.00019452,2]
[368006666,1750991445234,-460.0,0.00019452,2]
[368006668,1750991445243,-460.0,0.00019452,2]
[368006670,1750991445252,-460.0,0.00019452,2]
[368006672,1750991445262,-460.0,0.00019452,2]
[368006674,1750991445272,-462.42147707,0.00019452,2]
[368006676,1750991445281,-460.0,0.00019452,2]
[368006678,1750991445291,-460.0,0.00019452,2]
[368006680,1750991445300,-465.2401065,0.00019452,2]
[368006682,1750991445310,-460.0,0.00019452,2]
[368006684,1750991445319,-460.0,0.00019452,2]
[368006686,1750991445329,-460.0,0.00019452,2]
[368006688,1750991445339,-460.0,0.00019452,2]
[368006690,1750991445350,-410.0,0.00019452,2]
[368006692,1750991445359,-460.0,0.00019452,2]
[368006694,1750991445369,-460.0,0.00019452,2]
[368006696,1750991445379,-548.91,0.00019452,2]
[368006698,1750991445388,-460.0,0.00019452,2]
[368006700,1750991445398,-460.0,0.00019452,2]
[368006702,1750991445407,-460.0,0.00019452,2]
[368006704,1750991445416,-460.0,0.00019452,2]
[368006706,1750991445426,-460.0,0.00019452,2]
[368006708,1750991445435,-460.0,0.00019452,2]
[368006710,1750991445444,-460.0,0.00019452,2]
[368006712,1750991445454,-460.0,0.00019452,2]
[368006714,1750991445464,-460.0,0.00019452,2]
[368006716,1750991445474,-460.0,0.00019452,2]
[368006718,1750991445483,-487.58529252,0.00019452,2]
[368006720,1750991445496,-460.0,0.00019452,2]
[368006722,1750991445506,-460.0,0.00019452,2]
[368006724,1750991445516,-460.0,0.00019452,2]
[368006726,1750991445526,-460.0,0.00019452,2]
[368006728,1750991445536,-460.0,0.00019452,2]
[368006730,1750991445545,-460.0,0.00019452,2]
[368006732,1750991445555,-460.0,0.00019452,2]
[368006734,1750991445564,-460.0,0.00019452,2]
[368006736,1750991445573,-460.0,0.00019452,2]
[368006738,1750991445583,-460.0,0.00019452,2]
[368006740,1750991445592,-582.23,0.00019452,2]
[368006742,1750991445602,-461.60995275,0.00019452,2]
[368006744,1750991445612,-460.0,0.00019452,2]
[368006746,1750991445622,-460.0,0.00019452,2]
[368006748,1750991445632,-460.0,0.00019452,2]
[368006750,1750991445642,-460.0,0.00019452,2]
[368006752,1750991445651,-460.0,0.00019452,2]
[368006754,1750991445661,-460.0,0.00019452,2]
[368006756,1750991445671,-460.0,0.00019452,2]
[368006758,1750991445680,-460.0,0.00019452,2]
[368006760,1750991445690,-460.0,0.00019452,2]
[368006762,1750991445699,-460.0,0.00019452,2]
[368006764,1750991445708,-460.0,0.00019452,2]
[368006766,1750991445718,-460.0,0.00019452,2]
[368006768,1750991445727,-460.0,0.00019452,2]
[368006770,1750991445738,-460.0,0.00019452,2]
[368006772,1750991445748,-460.0,0.00019452,2]
[368006774,1750991445757,-460.0,0.00019452,2]
[368006776,1750991445767,-460.0,0.00019452,2]
[368006778,1750991445776,-460.0,0.00019452,2]
[368006780,1750991445786,-460.0,0.00019452,2]
[368006782,1750991445796,-1572.33,0.00019452,2]
[368006784,1750991445806,-668.56,0.00019452,2]
[368006786,1750991445815,-460.0,0.00019452,2]
[368006788,1750991445825,-682.7,0.00019452,2]
[368006790,1750991445834,-460.0,0.00019452,2]
[368006792,1750991445844,-460.0,0.00019452,2]
[368006794,1750991445853,-460.0,0.00019452,2]
[368006796,1750991445863,-1579.32,0.00019452,2]
[368006798,1750991445872,-460.0,0.00019452,2]
[368006800,1750991445881,-478.14,0.00019452,2]
[368006802,1750991445890,-460.0,0.00019452,2]
[368006804,1750991445900,-634.66,0.00019452,2]
[368006806,1750991445910,-460.0,0.00019452,2]
[368006807,1750991445920,-460.0,0.00019452,2]
[368006809,1750991445930,-3238.07,0.00019452,2]
[368006812,1750991445940,-460.0,0.00019452,2]
[368006813,1750991445950,-476.92,0.00019452,2]
[368006815,1750991445960,-460.0,0.00019452,2]
[368006817,1750991445970,-460.0,0.00019452,2]
[368006819,1750991445979,-460.0,0.00019452,2]
[368006821,1750991445989,-460.0,0.00019452,2]
[368006823,1750991445998,-460.0,0.00019452,2]
[368006825,1750991446007,-460.0,0.00019452,2]
[368006827,1750991446018,-460.0,0.00019452,2]
[368006829,1750991446027,-460.0,0.00019452,2]
[368006831,1750991446037,-381.59875939,0.00019452,2]
[368006833,1750991446047,-1404.89,0.00019452,2]
[368006835,1750991446057,-727.02,0.00019452,2]
[368006837,1750991446066,-460.0,0.00019452,2]
[368006839,1750991446076,-460.0,0.00019452,2]
[368006842,1750991446086,-604.05,0.00019452,2]
[368006844,1750991446095,-460.0,0.00019452,2]
[368006846,1750991446105,-469.05,0.00019452,2]
[368006848,1750991446114,-460.0,0.00019452,2]
[368006850,1750991446123,-460.0,0.00019452,2]
[368006852,1750991446133,-460.0,0.00019452,2]
[368006854,1750991446142,-1490.54,0.00019452,2]
[368006856,1750991446153,-789.6,0.00019452,2]
[368006858,1750991446163,-1114.49,0.00019452,2]
[368006860,1750991446172,-460.0,0.00019452,2]
[368006862,1750991446181,-460.0,0.00019452,2]
[368006864,1750991446191,-460.0,0.00019452,2]
[368006865,1750991446200,-460.0,0.00019452,2]
[368006867,1750991446210,-1064.01,0.00019452,2]
[368006869,1750991446219,-498.71,0.00019452,2]
[368006871,1750991446229,-2103.41,0.00019452,2]
[368006873,1750991446238,-516.23,0.00019452,2]
[368006875,1750991446248,-1368.96,0.00019452,2]
[368006877,1750991446257,-460.0,0.00019452,2]
[368006879,1750991446267,-460.0,0.00019452,2]
[368006881,1750991446276,-460.0,0.00019452,2]
[368006883,1750991446285,-460.0,0.00019452,2]
[368006886,1750991446296,-460.0,0.00019452,2]
[368006889,1750991446305,-460.0,0.00019452,2]
[368006891,1750991446316,-513.72,0.00019452,2]
[368006893,1750991446327,-489.67,0.00019452,2]
[368006895,1750991446336,-460.0,0.00019452,2]
[368006897,1750991446347,-460.0,0.00019452,2]
[368006899,1750991446356,-460.0,0.00019452,2]
[368006901,1750991446366,-862.43,0.00019452,2]
[368006903,1750991446375,-1250.61,0.00019452,2]
[368006909,1750991446431,-460.0,0.00019452,2]
[368006911,1750991446441,-460.0,0.00019452,2]
[368006912,1750991446451,-775.3,0.00019452,2]
[368006913,1750991446461,-460.0,0.00019452,2]
[368006914,1750991446470,-460.0,0.00019452,2]
[368006915,1750991446479,-3062.62,0.00019452,2]
[368006916,1750991446489,-460.0,0.00019452,2]
[368006917,1750991446500,-460.0,0.00019452,2]
[368006918,1750991446508,-460.0,0.00019452,2]
[368006919,1750991446518,-901.11,0.00019452,2]
[368006920,1750991446527,-460.0,0.00019452,2]
[368006921,1750991446538,-460.0,0.00019452,2]
[368006922,1750991446547,-2329.81,0.00019452,2]
[368006923,1750991446557,-669.95,0.00019452,2]
[368006924,1750991446566,-460.0,0.00019452,2]
[368006925,1750991446576,-939.51,0.00019452,2]
[368006926,1750991446585,-460.0,0.00019452,2]
[368006927,1750991446594,-460.0,0.00019452,2]
[368006928,1750991446604,-576.42,0.00019452,2]
[368006929,1750991446613,-460.0,0.00019452,2]
[368006930,1750991446622,-819.76,0.00019452,2]
[368006931,1750991446631,-2723.49,0.00019452,2]
[368006932,1750991446641,-460.0,0.00019452,2]
[368006933,1750991446651,-663.07,0.00019452,2]
[368006934,1750991446660,-460.0,0.00019452,2]
[368006935,1750991446670,-461.9,0.00019452,2]
[368006936,1750991446680,-1098.03,0.00019452,2]
[368006937,1750991446689,-460.0,0.00019452,2]
[368006938,1750991446698,-460.0,0.00019452,2]
[368006940,1750991446707,-460.0,0.00019452,2]
[368006941,1750991446717,-460.0,0.00019452,2]
[368006943,1750991446726,-1765.88,0.00019452,2]
[368006946,1750991446735,-460.0,0.00019452,2]
[368006947,1750991446745,-452.87329797,0.00019452,2]
[368006949,1750991446754,-460.0,0.00019452,2]
[368006952,1750991446764,-878.55,0.00019452,2]
[368006953,1750991446773,-460.0,0.00019452,2]
[368006955,1750991446783,-460.0,0.00019452,2]
[368006957,1750991446792,-460.0,0.00019452,2]
[368006959,1750991446801,-502.76635815,0.00019452,2]
[368006961,1750991446810,-460.0,0.00019452,2]
[368006963,1750991446819,-460.0,0.00019452,2]
[368006965,1750991446828,-460.0,0.00019452,2]
[368006967,1750991446837,-466.96,0.00019452,2]
[368006969,1750991446851,-460.0,0.00019452,2]
[368006971,1750991446861,-374.15175073,0.00019452,2]
[368006973,1750991446870,-460.0,0.00019452,2]
[368006975,1750991446880,-467.0541894,0.00019452,2]
[368006977,1750991446889,-460.0,0.00019452,2]
[368006979,1750991446899,-460.0,0.00019452,2]
[368006981,1750991446908,-833.07,0.00019452,2]
[368006983,1750991446917,-460.0,0.00019452,2]
[368006985,1750991446927,-1449.67,0.00019452,2]
[368006987,1750991446936,-700.91,0.00019452,2]
[368006989,1750991446946,-460.0,0.00019452,2]
[368006991,1750991446955,-460.0,0.00019452,2]
[368006993,1750991446964,-460.0,0.00019452,2]
[368006995,1750991446974,-460.0,0.00019452,2]
[368006997,1750991446983,-460.0,0.00019452,2]
[368006999,1750991446992,-460.0,0.00019452,2]
[368007001,1750991447001,-179.57827425,0.00019651,2]
[368007003,1750991447012,-501.04519411,0.00019653,2]
[368007005,1750991447022,-586.08574951,0.00019653,2]
[368007007,1750991447031,-500.0,0.00019653,2]
[368007009,1750991447041,-500.0,0.00019664,2]
[368007011,1750991447050,-500.0,0.00019691,2]
[368007013,1750991447060,-151.0,0.00019692,2]
[368007015,1750991447070,-151.0,0.00019692,2]
[368007017,1750991447079,-285.78313838,0.000197,2]
[368007019,1750991447088,-500.0,0.00019719,2]
[368007021,1750991447098,-199.03612545,0.00019719,2]
[368007023,1750991447107,-460.0,0.00019726,2]
[368007025,1750991447116,-460.0,0.00019726,2]
[368007027,1750991447126,-460.0,0.00019726,2]
[368007029,1750991447135,-460.0,0.00019726,2]
[368007031,1750991447144,-465.12424,0.00019726,2]
[368007033,1750991447154,-460.0,0.00019726,2]
[368007035,1750991447163,-460.0,0.00019726,2]
[368007037,1750991447172,-601.85523965,0.00019726,2]
[368007039,1750991447181,-460.0,0.00019726,2]
[368007041,1750991447191,-460.0,0.00019726,2]
[368007043,1750991447200,-460.0,0.00019726,2]
[368007045,1750991447209,-460.0,0.00019726,2]
[368007047,1750991447218,-460.0,0.00019726,2]
[368007049,1750991447228,-460.0,0.00019726,2]
[368007051,1750991447237,-460.0,0.00019726,2]
[368007053,1750991447246,-460.0,0.00019726,2]
[368007055,1750991447256,-460.0,0.00019726,2]
[368007057,1750991447265,-460.0,0.00019726,2]
[368007059,1750991447275,-460.0,0.00019726,2]
[368007061,1750991447284,-460.0,0.00019726,2]
[368007063,1750991447293,-460.0,0.00019726,2]
[368007065,1750991447303,-460.0,0.00019726,2]
[368007067,1750991447313,-180.16183056,0.00019726,2]
[368007069,1750991447322,-460.0,0.00019726,2]
[368007071,1750991447332,-460.0,0.00019726,2]
[368007073,1750991447344,-462.53439296,0.00019726,2]
[368007075,1750991447353,-460.0,0.00019726,2]
[368007077,1750991447363,-460.0,0.00019726,2]
[368007079,1750991447372,-460.0,0.00019726,2]
[368007081,1750991447382,-460.0,0.00019726,2]
[368007083,1750991447392,-307.36363911,0.00019726,2]
[368007085,1750991447402,-465.99113209,0.00019726,2]
[368007087,1750991447411,-460.0,0.00019726,2]
[368007089,1750991447420,-460.0,0.00019726,2]
[368007091,1750991447430,-460.0,0.00019726,2]
[368007093,1750991447439,-460.0,0.00019726,2]
[368007095,1750991447448,-460.0,0.00019726,2]
[368007097,1750991447458,-460.0,0.00019726,2]
[368007099,1750991447468,-512.22,0.00019726,2]
[368007101,1750991447483,-460.0,0.00019726,2]
[368007102,1750991447495,-460.0,0.00019726,2]
[368007104,1750991447505,-460.0,0.00019726,2]
[368007106,1750991447514,-460.0,0.00019726,2]
[368007108,1750991447523,-460.0,0.00019726,2]
[368007111,1750991447533,-460.0,0.00019726,2]
[368007112,1750991447543,-464.50622686,0.00019726,2]
[368007115,1750991447553,-460.0,0.00019726,2]
[368007117,1750991447563,-460.0,0.00019726,2]
[368007119,1750991447573,-460.0,0.00019726,2]
[368007121,1750991447582,-460.0,0.00019726,2]
[368007123,1750991447591,-460.0,0.00019726,2]
[368007124,1750991447600,-460.0,0.00019726,2]
[368007126,1750991447609,-460.0,0.00019726,2]
[368007128,1750991447619,-548.91,0.00019726,2]
[368007130,1750991447628,-210.3,0.00019726,2]
[368007132,1750991447637,-460.0,0.00019726,2]
[368007134,1750991447646,-460.0,0.00019726,2]
[368007136,1750991447655,-460.0,0.00019726,2]
[368007138,1750991447665,-467.31011158,0.00019726,2]
[368007140,1750991447674,-460.0,0.00019726,2]
[368007142,1750991447684,-460.0,0.00019726,2]
[368007144,1750991447693,-460.0,0.00019726,2]
[368007146,1750991447702,-460.0,0.00019726,2]
[368007148,1750991447711,-460.0,0.00019726,2]
[368007150,1750991447721,-460.0,0.00019726,2]
[368007153,1750991447730,-460.0,0.00019726,2]
[368007155,1750991447740,-460.0,0.00019726,2]
[368007157,1750991447750,-460.0,0.00019726,2]
[368007158,1750991447759,-460.0,0.00019726,2]
[368007160,1750991447769,-582.23,0.00019726,2]
[368007163,1750991447779,-460.0,0.00019726,2]
[368007165,1750991447789,-460.0,0.00019726,2]
[368007166,1750991447799,-460.0,0.00019726,2]
[368007169,1750991447809,-460.0,0.00019726,2]
[368007171,1750991447819,-460.0,0.00019726,2]
[368007173,1750991447830,-460.0,0.00019726,2]
[368007175,1750991447840,-460.0,0.00019726,2]
[368007177,1750991447849,-460.0,0.00019726,2]
[368007178,1750991447858,-460.0,0.00019726,2]
[368007180,1750991447868,-460.0,0.00019726,2]
[368007182,1750991447877,-460.0,0.00019726,2]
[368007184,1750991447886,-460.0,0.00019726,2]
[368007186,1750991447895,-1572.33,0.00019726,2]
[368007188,1750991447905,-668.56,0.00019726,2]
[368007190,1750991447914,-460.0,0.00019726,2]
[368007192,1750991447923,-682.7,0.00019726,2]
[368007194,1750991447933,-460.0,0.00019726,2]
[368007196,1750991447943,-1579.32,0.00019726,2]
[368007198,1750991447953,-460.0,0.00019726,2]
[368007200,1750991447962,-478.14,0.00019726,2]
[368007202,1750991447972,-460.0,0.00019726,2]
[368007204,1750991447982,-634.66,0.00019726,2]
[368007206,1750991447991,-460.0,0.00019726,2]
[368007208,1750991448001,-460.0,0.00019726,2]
[368007210,1750991448010,-3238.07,0.00019726,2]
[368007212,1750991448020,-476.92,0.00019726,2]
[368007214,1750991448030,-460.0,0.00019726,2]
[368007216,1750991448040,-460.0,0.00019726,2]
[368007218,1750991448049,-460.0,0.00019726,2]
[368007220,1750991448059,-460.0,0.00019726,2]
[368007222,1750991448069,-460.0,0.00019726,2]
[368007224,1750991448079,-460.0,0.00019726,2]
[368007226,1750991448088,-1404.89,0.00019726,2]
[368007228,1750991448098,-727.02,0.00019726,2]
[368007230,1750991448108,-460.0,0.00019726,2]
[368007232,1750991448118,-460.0,0.00019726,2]
[368007234,1750991448128,-604.05,0.00019726,2]
[368007236,1750991448138,-460.0,0.00019726,2]
[368007238,1750991448149,-469.05,0.00019726,2]
[368007240,1750991448160,-460.0,0.00019726,2]
[368007242,1750991448170,-460.0,0.00019726,2]
[368007244,1750991448180,-1490.54,0.00019726,2]
[368007246,1750991448190,-789.6,0.00019726,2]
[368007248,1750991448200,-1114.49,0.00019726,2]
[368007250,1750991448210,-460.0,0.00019726,2]
[368007252,1750991448219,-460.0,0.00019726,2]
[368007254,1750991448229,-460.0,0.00019726,2]
[368007256,1750991448239,-460.0,0.00019726,2]
[368007258,1750991448248,-1064.01,0.00019726,2]
[368007260,1750991448257,-2103.41,0.00019726,2]
[368007262,1750991448267,-516.23,0.00019726,2]
[368007264,1750991448276,-1368.96,0.00019726,2]
[368007266,1750991448286,-460.0,0.00019726,2]
[368007268,1750991448296,-460.0,0.00019726,2]
[368007270,1750991448306,-460.0,0.00019726,2]
[368007272,1750991448316,-460.0,0.00019726,2]
[368007274,1750991448325,-513.72,0.00019726,2]
[368007276,1750991448335,-489.67,0.00019726,2]
[368007278,1750991448345,-460.0,0.00019726,2]
[368007280,1750991448355,-862.43,0.00019726,2]
[368007282,1750991448366,-1250.61,0.00019726,2]
[368007284,1750991448376,-460.0,0.00019726,2]
[368007286,1750991448387,-460.0,0.00019726,2]
[368007288,1750991448397,-775.3,0.00019726,2]
[368007290,1750991448407,-460.0,0.00019726,2]
[368007292,1750991448416,-460.0,0.00019726,2]
[368007294,1750991448426,-3062.62,0.00019726,2]
[368007296,1750991448436,-460.0,0.00019726,2]
[368007298,1750991448446,-460.0,0.00019726,2]
[368007300,1750991448457,-901.11,0.00019726,2]
[368007302,1750991448466,-460.0,0.00019726,2]
[368007304,1750991448476,-2329.81,0.00019726,2]
[368007306,1750991448486,-669.95,0.00019726,2]
[368007308,1750991448499,-460.0,0.00019726,2]
[368007310,1750991448508,-939.51,0.00019726,2]
[368007312,1750991448518,-460.0,0.00019726,2]
[368007314,1750991448527,-460.0,0.00019726,2]
[368007316,1750991448538,-576.42,0.00019726,2]
[368007318,1750991448548,-460.0,0.00019726,2]
[368007320,1750991448558,-819.76,0.00019726,2]
[368007322,1750991448567,-2723.49,0.00019726,2]
[368007324,1750991448579,-460.0,0.00019726,2]
[368007327,1750991448590,-663.07,0.00019726,2]
[368007328,1750991448600,-1098.03,0.00019726,2]
[368007330,1750991448610,-460.0,0.00019726,2]
[368007333,1750991448620,-460.0,0.00019726,2]
[368007334,1750991448629,-460.0,0.00019726,2]
[368007337,1750991448640,-1765.88,0.00019726,2]
[368007339,1750991448650,-460.0,0.00019726,2]
[368007340,1750991448660,-878.55,0.00019726,2]
[368007343,1750991448670,-460.0,0.00019726,2]
[368007345,1750991448680,-466.96,0.00019726,2]
[368007347,1750991448690,-460.0,0.00019726,2]
[368007349,1750991448700,-833.07,0.00019726,2]
[368007351,1750991448710,-460.0,0.00019726,2]
[368007353,1750991448719,-1449.67,0.00019726,2]
[368007355,1750991448729,-700.91,0.00019726,2]
[368007357,1750991448739,-460.0,0.00019726,2]
[368007359,1750991448749,-460.0,0.00019726,2]
[368007361,1750991448759,-448.17310777,0.00019726,2]
[368007362,1750991448769,-460.0,0.00019726,2]
[368007365,1750991448779,-500.0,0.00019746,2]
[368007367,1750991448789,-500.0,0.00019774,2]
[368007369,1750991448799,-500.0,0.00019801,2]
[368007371,1750991448809,-392.288962,0.00019828,2]
[368007373,1750991448819,-500.55681391,0.00019866,2]
[368007375,1750991448829,-582.60944418,0.00019866,2]
[368007377,1750991448838,-690.22862843,0.00019895,2]
[368007379,1750991448848,-4827.49112534,0.000199,2]
[368007381,1750991448858,-17767.08876448,0.0001999,2]
[368007383,1750991448867,-460.0,0.0002,2]
[368007384,1750991448878,-460.0,0.0002,2]
[368007386,1750991448888,-460.0,0.0002,2]
[368007389,1750991448898,-460.0,0.0002,2]
[368007390,1750991448908,-460.0,0.0002,2]
[368007393,1750991448919,-460.0,0.0002,2]
[368007395,1750991448929,-460.0,0.0002,2]
[368007397,1750991448939,-429.22124956,0.0002,2]